[Event "AUT-ch 2018"]
[Site "Vienna"]
[Date "2018.07.24"]
[Round "4"]
[White "Mayrhuber, Nikola"]
[Black "Sadilek, Maximilian"]
[Result "0-1"]
[ECO "A41"]
[WhiteElo "2046"]
[BlackElo "2224"]
[Annotator "NA"]
[PlyCount "74"]
[EventDate "2018.07.22"]
[EventType "swiss"]
[EventCountry "AUT"]
[SourceTitle "playchess.com"]
[Source "ChessBase"]
[SourceQuality "1"]
[TimeControl "40/5400+30:1800+30"]

1. d4 {[%emt 0:00:00]} d6 {[%emt 0:00:33]} 2. c4 {[%emt 0:00:01]} g6 {[%emt 0:00:58]} 3. Nf3 {[%emt 0:00:19]} Bg7 {[%emt 0:00:07]} 4. e4 {[%emt 0:00:48]} Nd7 {[%emt 0:11:23]} 5. Nc3 {[%emt 0:00:33]} e5 {[%emt 0:00:17]} 6. Be2 {[%emt 0:00:35]} Ne7 {[%emt 0:01:55]} 7. h4 {[%emt 0:01:03]} h6 {[%emt 0:19:22]} 8. h5 {[%emt 0:00:22]} g5 {[%emt 0:00:19]} 9. d5 {[%emt 0:00:37]} f5 {[%emt 0:03:22]} 10. g4 {[%emt 0:00:43]} fxg4 {[%emt 0:12:27]} 11. Nh2 {[%emt 0:01:28]} Nf6 {[%emt 0:00:18]} 12. Nxg4 {[%emt 0:00:23]} Nxg4 {[%emt 0:08:22]} 13. Bxg4 {[%emt 0:00:06]} O-O {[%emt 0:00:28]} 14. Be3 {[%emt 0:02:36]} c6 {[%emt 0:01:03]} 15. Qe2 {[%emt 0:10:51]} b5 {[%emt 0:16:19]} 16. dxc6 {[%emt 0:09:49]} b4 {[%emt 0:05:34]} 17. Nd5 {[%emt 0:06:18]} Nxc6 {[%emt 0:00:11]} 18. Bxc8 {[%emt 0:02:47]} Rxc8 {[%emt 0:00:24]} 19. O-O-O {[%emt 0:05:41]} Nd4 {[%emt 0:08:37]} 20. Bxd4 {[%emt 0:02:43]} exd4 {[%emt 0:00:08]} 21. b3 {[%emt 0:01:39]} a5 {[%emt 0:00:24]} 22. Qg4 {[%emt 0:01:03]} a4 {[%emt 0:04:29]} 23. Qxc8 {[%emt 0:07:23]} Qxc8 {[%emt 0:01:23]} 24. Ne7+ {[%emt 0:00:06]} Kf7 {[%emt 0:00:05]} 25. Nxc8 {[%emt 0:00:12]} Rxc8 {[%emt 0:00:03]} 26. Kc2 {[%emt 0:06:08]} Ke6 {[%emt 0:00:42]} 27. f4 {[%emt 0:17:58]} gxf4 {[%emt 0:00:05]} 28. Rhg1 {[%emt 0:00:05]} Be5 {[%emt 0:02:04]} 29. Rg6+ {[%emt 0:00:06]} Kd7 {[%emt 0:00:36]} 30. Rxh6 {[%emt 0:00:43]} Ra8 {[%emt 0:01:11]} 31. Rd3 {[%emt 0:13:07]} axb3+ {[%emt 0:00:29]} 32. Rxb3 {[%emt 0:04:09]} Rxa2+ {[%emt 0:00:09]} 33. Kb1 {[%emt 0:00:54]} Rh2 {[%emt 0:00:36]} 34. Rxb4 {[%emt 0:01:19]} d3 {[%emt 0:00:32]} 35. Rh7+ {[%emt 0:00:57]} Kc6 {[%emt 0:00:51]} 36. Rb3 {[%emt 0:01:52]} Rh1+ {[%emt 0:00:09]} 37. Ka2 {[%emt 0:01:49]} Ra1# 0-1

[Event "AUT-ch 2018"]
[Site "Vienna"]
[Date "2018.07.24"]
[Round "4"]
[White "Zanon, Magnus"]
[Black "Morgunov, Marc"]
[Result "0-1"]
[ECO "A45"]
[WhiteElo "2022"]
[BlackElo "2362"]
[Annotator "NA"]
[PlyCount "54"]
[EventDate "2018.07.22"]
[EventType "swiss"]
[EventCountry "AUT"]
[SourceTitle "playchess.com"]
[Source "ChessBase"]
[SourceQuality "1"]
[TimeControl "40/5400+30:1800+30"]

1. d4 {[%emt 0:00:00]} Nf6 {[%emt 0:00:12]} 2. Bg5 {[%emt 0:00:00]} Ne4 {[%emt 0:01:25]} 3. Bf4 {[%emt 0:00:00]} d5 {[%emt 0:01:34]} 4. e3 {[%emt 0:01:13]} Nd7 {[%emt 0:01:29]} 5. Bd3 {[%emt 0:01:52]} g5 {[%emt 0:12:19]} 6. Bxe4 {[%emt 0:06:36]} gxf4 {[%emt 0:00:06]} 7. Bxd5 {[%emt 0:03:43]} fxe3 {[%emt 0:00:07]} 8. Bxf7+ {[%emt 0:06:56]} Kxf7 {[%emt 0:00:49]} 9. Qh5+ {[%emt 0:00:13]} Kg8 {[%emt 0:01:59]} 10. Qd5+ {[%emt 0:01:32]} e6 {[%emt 0:01:45]} 11. Qxe6+ {[%emt 0:00:07]} Kg7 {[%emt 0:00:02]} 12. Qg4+ {[%emt 0:04:59]} Kh6 {[%emt 0:00:12]} 13. fxe3 {[%emt 0:07:59]} Rg8 {[%emt 0:01:48]} 14. Qf4+ {[%emt 0:06:17]} Kg7 {[%emt 0:01:53]} 15. Nd2 {[%emt 0:04:19]} Bd6 {[%emt 0:01:35]} 16. Qf2 {[%emt 0:03:03]} Nf6 {[%emt 0:05:47]} 17. O-O-O {[%emt 0:06:14]} Qe7 {[%emt 0:06:00]} 18. Re1 {[%emt 0:04:49]} Ne4 {[%emt 0:01:40]} 19. Nxe4 {[%emt 0:01:04]} Qxe4 {[%emt 0:00:07]} 20. Nf3 {[%emt 0:05:17]} Rf8 {[%emt 0:05:07]} 21. Qh4 {[%emt 0:04:50]} Qxh4 {[%emt 0:00:09]} 22. Nxh4 {[%emt 0:00:02]} Bg4 {[%emt 0:01:35]} 23. h3 {[%emt 0:02:33]} Bd7 {[%emt 0:02:23]} 24. Nf3 {[%emt 0:00:14]} Rae8 {[%emt 0:01:16]} 25. e4 {[%emt 0:01:37]} Bg3 {[%emt 0:00:32]} 26. Re3 {[%emt 0:02:41]} Bf4 {[%emt 0:00:36]} 27. Kd2 {[%emt 0:00:01]} Rxe4 {[%emt 0:00:16]} 0-1

[Event "AUT-ch 2018"]
[Site "Vienna"]
[Date "2018.07.24"]
[Round "4"]
[White "Tauber, Andreas"]
[Black "Knoll, Hermann"]
[Result "0-1"]
[ECO "A15"]
[WhiteElo "1993"]
[BlackElo "2338"]
[Annotator "NA"]
[PlyCount "170"]
[EventDate "2018.07.22"]
[EventType "swiss"]
[EventCountry "AUT"]
[SourceTitle "playchess.com"]
[Source "ChessBase"]
[SourceQuality "1"]
[TimeControl "40/5400+30:1800+30"]

1. c4 {[%emt 0:00:00]} Nf6 {[%emt 0:00:42]} 2. g3 {[%emt 0:00:00]} g6 {[%emt 0:00:13]} 3. Bg2 {[%emt 0:00:00]} Bg7 {[%emt 0:00:07]} 4. e4 {[%emt 0:00:08]} d6 {[%emt 0:00:10]} 5. Ne2 {[%emt 0:00:54]} c5 {[%emt 0:00:07]} 6. Nbc3 {[%emt 0:01:29]} Nc6 {[%emt 0:00:06]} 7. d4 {[%emt 0:02:38]} cxd4 {[%emt 0:00:05]} 8. Nxd4 {[%emt 0:01:04]} Bd7 {[%emt 0:00:30]} 9. Nde2 {[%emt 0:06:26]} O-O {[%emt 0:00:58]} 10. O-O {[%emt 0:01:36]} Rc8 {[%emt 0:00:34]} 11. b3 {[%emt 0:07:26]} Re8 {[%emt 0:00:51]} 12. h3 {[%emt 0:01:25]} a6 {[%emt 0:00:33]} 13. Be3 {[%emt 0:03:14]} Na5 {[%emt 0:00:54]} 14. Rc1 {[%emt 0:02:02]} b5 {[%emt 0:00:04]} 15. cxb5 {[%emt 0:01:01]} axb5 {[%emt 0:00:02]} 16. Nd4 {[%emt 0:04:05]} b4 {[%emt 0:02:17]} 17. Nd5 {[%emt 0:02:25]} e5 {[%emt 0:07:25]} 18. Nc2 {[%emt 0:04:37]} Nxd5 {[%emt 0:00:05]} 19. Qxd5 {[%emt 0:01:42]} Be6 {[%emt 0:04:59]} 20. Qd2 {[%emt 0:00:29]} Bxb3 {[%emt 0:00:04]} 21. axb3 {[%emt 0:03:20]} Nxb3 {[%emt 0:00:02]} 22. Qxb4 {[%emt 0:01:52]} Nxc1 {[%emt 0:00:03]} 23. Rxc1 {[%emt 0:00:39]} Rb8 {[%emt 0:07:33]} 24. Qc3 {[%emt 0:11:20]} Qc8 {[%emt 0:01:49]} 25. Qd3 {[%emt 0:10:53]} Qe6 {[%emt 0:00:25]} 26. Rd1 {[%emt 0:03:19]} Rec8 {[%emt 0:00:27]} 27. Ne1 {[%emt 0:01:17]} Bf8 {[%emt 0:00:04]} 28. Kh2 {[%emt 0:02:04]} Qa2 {[%emt 0:05:05]} 29. Nf3 {[%emt 0:04:52]} Rc2 {[%emt 0:02:27]} 30. Qd5 {[%emt 0:03:03]} Qxd5 {[%emt 0:00:12]} 31. Rxd5 {[%emt 0:01:56]} Be7 {[%emt 0:00:52]} 32. g4 {[%emt 0:02:11]} f6 {[%emt 0:00:22]} 33. h4 {[%emt 0:05:26]} Kf7 {[%emt 0:01:09]} 34. Bh3 {[%emt 0:01:29]} Ke6 {[%emt 0:03:43]} 35. h5 {[%emt 0:03:30]} Rb4 {[%emt 0:02:09]} 36. hxg6 {[%emt 0:02:14]} hxg6 {[%emt 0:01:04]} 37. Rd2 {[%emt 0:01:22]} Rcc4 {[%emt 0:05:01]} 38. g5+ {[%emt 0:01:09]} f5 {[%emt 0:01:18]} 39. Nh4 {[%emt 0:00:23]} Rxe4 {[%emt 0:01:30]} 40. Nxg6 {[%emt 0:00:54]} Rxe3 {[%emt 0:38:07]} 41. Bxf5+ {[%emt 0:15:21]} Kxf5 {[%emt 0:00:00]} 42. Nxe7+ {[%emt 0:00:29]} Ke6 {[%emt 0:00:00]} 43. Nd5 {[%emt 0:02:26]} Rh4+ {[%emt 0:00:00]} 44. Kg2 {[%emt 0:00:34]} Rg4+ {[%emt 0:00:00]} 45. Kf1 {[%emt 0:01:00]} Rb3 {[%emt 0:00:00]} 46. Nf6 {[%emt 0:01:04]} Rb1+ {[%emt 0:00:00]} 47. Ke2 {[%emt 0:00:18]} Rgg1 {[%emt 0:00:00]} 48. Ne8 {[%emt 0:00:49]} e4 {[%emt 0:00:00]} 49. Ke3 {[%emt 0:02:14]} Rxg5 {[%emt 0:00:00]} 50. Nxd6 {[%emt 0:01:41]} Re1+ {[%emt 0:00:00]} 51. Kf4 {[%emt 0:00:59]} Re5 {[%emt 0:00:00]} 52. Rd4 {[%emt 0:02:50]} Re2 {[%emt 0:00:00]} 53. Nxe4 {[%emt 0:01:27]} Rf5+ {[%emt 0:00:00]} 54. Kg4 {[%emt 0:00:33]} Rf8 {[%emt 0:00:00]} 55. f4 {[%emt 0:01:36]} Rg2+ {[%emt 0:00:00]} 56. Kf3 {[%emt 0:00:21]} Rg1 {[%emt 0:00:00]} 57. Ke3 {[%emt 0:01:42]} Re1+ {[%emt 0:00:00]} 58. Kd2 {[%emt 0:01:46]} Ra1 {[%emt 0:00:00]} 59. Nc5+ {[%emt 0:00:20]} Kf5 {[%emt 0:00:00]} 60. Nd3 {[%emt 0:00:06]} Ra2+ {[%emt 0:00:00]} 61. Ke3 {[%emt 0:00:44]} Kg4 {[%emt 0:00:00]} 62. Nf2+ {[%emt 0:00:43]} Kh4 {[%emt 0:00:00]} 63. Nd3 {[%emt 0:00:44]} Kg3 {[%emt 0:00:00]} 64. Rd7 {[%emt 0:01:42]} Rg8 {[%emt 0:00:00]} 65. Ke4 {[%emt 0:01:18]} Re2+ {[%emt 0:00:00]} 66. Kd4 {[%emt 0:00:41]} Kf3 {[%emt 0:00:00]} 67. Kd5 {[%emt 0:01:13]} Re3 {[%emt 0:00:06]} 68. Ne5+ {[%emt 0:02:18]} Kxf4 {[%emt 0:00:38]} 69. Rf7+ {[%emt 0:00:06]} Kg3 {[%emt 0:00:22]} 70. Nd7 {[%emt 0:00:50]} Rg5+ {[%emt 0:00:28]} 71. Kd6 {[%emt 0:00:16]} Rg6+ {[%emt 0:00:40]} 72. Kd5 {[%emt 0:00:41]} Ra3 {[%emt 0:00:17]} 73. Kd4 {[%emt 0:00:53]} Ra4+ {[%emt 0:01:12]} 74. Ke5 {[%emt 0:00:34]} Ra5+ {[%emt 0:00:07]} 75. Kd4 {[%emt 0:00:30]} Rg4+ {[%emt 0:00:03]} 76. Ke3 {[%emt 0:00:21]} Ra3+ {[%emt 0:00:05]} 77. Ke2 {[%emt 0:00:34]} Re4+ {[%emt 0:00:07]} 78. Kd2 {[%emt 0:00:38]} Rh4 {[%emt 0:00:22]} 79. Rg7+ {[%emt 0:00:25]} Kf4 {[%emt 0:00:08]} 80. Rf7+ {[%emt 0:00:33]} Kg5 {[%emt 0:00:06]} 81. Kc2 {[%emt 0:00:44]} Rh2+ {[%emt 0:00:08]} 82. Kb1 {[%emt 0:00:07]} Rd3 {[%emt 0:01:20]} 83. Kc1 {[%emt 0:00:34]} Rd5 {[%emt 0:00:16]} 84. Rg7+ {[%emt 0:00:21]} Kf5 {[%emt 0:00:20]} 85. Nb6 {[%emt 0:00:29]} Rc5+ {[%emt 0:00:08]} 0-1

[Event "AUT-ch 2018"]
[Site "Vienna"]
[Date "2018.07.24"]
[Round "4"]
[White "Kersten, Julian"]
[Black "Peyrer, Konstantin"]
[Result "0-1"]
[ECO "A45"]
[WhiteElo "1979"]
[BlackElo "2209"]
[Annotator "NA"]
[PlyCount "76"]
[EventDate "2018.07.22"]
[EventType "swiss"]
[EventCountry "AUT"]
[SourceTitle "playchess.com"]
[Source "ChessBase"]
[SourceQuality "1"]
[TimeControl "40/5400+30:1800+30"]

1. d4 {[%emt 0:00:00]} Nf6 {[%emt 0:00:11]} 2. Bg5 {[%emt 0:00:00]} d5 3. Bxf6 {[%emt 0:01:18]} gxf6 {[%emt 0:00:55]} 4. c4 {[%emt 0:00:08]} c6 {[%emt 0:01:12]} 5. g3 {[%emt 0:01:58]} e6 {[%emt 0:01:16]} 6. Bg2 {[%emt 0:01:59]} Nd7 {[%emt 0:02:03]} 7. cxd5 {[%emt 0:00:55]} exd5 {[%emt 0:00:14]} 8. Nf3 {[%emt 0:01:44]} f5 {[%emt 0:00:40]} 9. e3 {[%emt 0:01:37]} Nf6 {[%emt 0:01:25]} 10. O-O {[%emt 0:01:01]} Bd6 {[%emt 0:00:32]} 11. Nc3 {[%emt 0:01:20]} Be6 {[%emt 0:04:54]} 12. a3 {[%emt 0:01:51]} h5 {[%emt 0:01:02]} 13. h4 {[%emt 0:02:31]} Ne4 {[%emt 0:04:26]} 14. Rc1 {[%emt 0:02:14]} Qe7 {[%emt 0:03:13]} 15. Qa4 {[%emt 0:07:21]} O-O {[%emt 0:02:16]} 16. Ne2 {[%emt 0:02:14]} Kh7 {[%emt 0:03:03]} 17. Qd1 {[%emt 0:02:39]} f6 {[%emt 0:05:13]} 18. Ne1 {[%emt 0:05:28]} Bf7 {[%emt 0:04:51]} 19. Nd3 {[%emt 0:02:14]} Rg8 {[%emt 0:04:24]} 20. Kh2 {[%emt 0:10:01]} Rg7 {[%emt 0:08:10]} 21. Nef4 {[%emt 0:03:47]} Kh6 {[%emt 0:08:07]} 22. Qe2 {[%emt 0:13:33]} Rag8 {[%emt 0:07:45]} 23. Bh3 {[%emt 0:10:23]} a6 {[%emt 0:12:48]} 24. Bxf5 {[%emt 0:06:16]} Rxg3 {[%emt 0:00:08]} 25. fxg3 {[%emt 0:01:01]} Nxg3 {[%emt 0:00:06]} 26. Qf3 {[%emt 0:02:32]} Nxf5 {[%emt 0:00:14]} 27. Rg1 {[%emt 0:04:05]} Rxg1 {[%emt 0:01:54]} 28. Rxg1 {[%emt 0:00:24]} Nxe3 {[%emt 0:00:26]} 29. Re1 {[%emt 0:05:38]} Ng4+ {[%emt 0:00:14]} 30. Kh1 {[%emt 0:03:01]} Qd7 {[%emt 0:02:37]} 31. Nf2 {[%emt 0:01:30]} Qf5 {[%emt 0:01:08]} 32. N2d3 {[%emt 0:02:13]} b6 {[%emt 0:03:52]} 33. b4 {[%emt 0:01:33]} Bb8 {[%emt 0:02:10]} 34. Rf1 {[%emt 0:00:25]} Qe4 {[%emt 0:01:51]} 35. Qxe4 {[%emt 0:01:35]} dxe4 {[%emt 0:00:07]} 36. Nb2 {[%emt 0:00:28]} e3 {[%emt 0:01:23]} 37. Kg2 {[%emt 0:01:00]} a5 {[%emt 0:02:06]} 38. Ne2 {[%emt 0:00:00]} Bd5+ 0-1

[Event "AUT-ch 2018"]
[Site "Vienna"]
[Date "2018.07.24"]
[Round "4"]
[White "Wu, Min"]
[Black "Ehs, Dominik"]
[Result "0-1"]
[ECO "A80"]
[WhiteElo "1944"]
[BlackElo "2097"]
[Annotator "NA"]
[PlyCount "116"]
[EventDate "2018.07.22"]
[EventType "swiss"]
[EventCountry "AUT"]
[SourceTitle "playchess.com"]
[Source "ChessBase"]
[SourceQuality "1"]
[TimeControl "40/5400+30:1800+30"]

1. d4 {[%emt 0:00:00]} f5 {[%emt 0:00:09]} 2. Nf3 {[%emt 0:01:06]} Nf6 {[%emt 0:00:12]} 3. g3 {[%emt 0:01:45]} g6 {[%emt 0:00:13]} 4. b3 {[%emt 0:06:14]} Bg7 {[%emt 0:00:19]} 5. Bb2 {[%emt 0:00:12]} O-O {[%emt 0:00:36]} 6. Bg2 {[%emt 0:00:38]} d6 {[%emt 0:03:40]} 7. c4 {[%emt 0:06:46]} e6 {[%emt 0:05:28]} 8. O-O {[%emt 0:02:46]} Nbd7 {[%emt 0:04:29]} 9. Qc2 {[%emt 0:03:42]} Ne4 {[%emt 0:05:30]} 10. Nbd2 {[%emt 0:06:12]} Ndf6 {[%emt 0:08:56]} 11. Rac1 {[%emt 0:05:48]} c6 {[%emt 0:15:38]} 12. Ne1 {[%emt 0:18:58]} Nxd2 {[%emt 0:11:36]} 13. Qxd2 {[%emt 0:00:12]} Ne4 {[%emt 0:00:16]} 14. Qc2 {[%emt 0:05:22]} d5 {[%emt 0:00:29]} 15. Nf3 {[%emt 0:00:59]} Bh6 {[%emt 0:09:41]} 16. e3 {[%emt 0:01:09]} g5 {[%emt 0:05:51]} 17. Ne5 {[%emt 0:00:53]} Nd6 {[%emt 0:05:06]} 18. Ba3 {[%emt 0:03:22]} Rf6 {[%emt 0:00:28]} 19. Bxd6 {[%emt 0:05:44]} Qxd6 {[%emt 0:00:10]} 20. f3 {[%emt 0:01:06]} Bd7 {[%emt 0:04:19]} 21. Rce1 {[%emt 0:09:32]} Be8 {[%emt 0:01:07]} 22. c5 {[%emt 0:00:15]} Qd8 {[%emt 0:00:51]} 23. Qc3 {[%emt 0:03:57]} Bg7 {[%emt 0:04:12]} 24. Qd2 {[%emt 0:01:51]} Rf8 {[%emt 0:03:27]} 25. Rf2 {[%emt 0:00:45]} Qe7 {[%emt 0:03:12]} 26. Qc1 {[%emt 0:02:43]} Rd8 {[%emt 0:00:33]} 27. Bf1 {[%emt 0:01:52]} Bh5 {[%emt 0:02:58]} 28. f4 {[%emt 0:02:42]} Bxe5 {[%emt 0:02:05]} 29. fxe5 {[%emt 0:00:46]} Rf7 {[%emt 0:00:52]} 30. Bd3 {[%emt 0:00:49]} Rdf8 {[%emt 0:00:31]} 31. Ref1 {[%emt 0:02:42]} Kh8 {[%emt 0:00:58]} 32. Qd2 {[%emt 0:00:52]} Bg6 {[%emt 0:01:28]} 33. h3 {[%emt 0:01:12]} Bh5 {[%emt 0:00:28]} 34. Kg2 {[%emt 0:00:32]} Rg7 {[%emt 0:00:48]} 35. a4 {[%emt 0:01:39]} Bg6 {[%emt 0:00:23]} 36. Rg1 {[%emt 0:01:58]} a6 {[%emt 0:00:36]} 37. b4 {[%emt 0:00:27]} Rgf7 {[%emt 0:00:13]} 38. Rgf1 {[%emt 0:00:15]} Kg7 {[%emt 0:00:23]} 39. Kh2 {[%emt 0:00:33]} h5 {[%emt 0:00:45]} 40. Qc2 {[%emt 0:01:01]} Kh6 {[%emt 0:30:54]} 41. Kg2 {[%emt 0:08:42]} Bh7 {[%emt 0:00:00]} 42. Qd2 {[%emt 0:01:25]} Kg7 {[%emt 0:00:00]} 43. Kh2 {[%emt 0:01:43]} Kg8 {[%emt 0:00:00]} 44. Qe2 {[%emt 0:05:54]} Bg6 {[%emt 0:00:00]} 45. Qd2 {[%emt 0:02:37]} Rh7 {[%emt 0:00:00]} 46. Qc2 {[%emt 0:01:09]} Qg7 {[%emt 0:00:00]} 47. Qd2 {[%emt 0:05:56]} Qh6 {[%emt 0:00:00]} 48. Kg2 {[%emt 0:01:31]} Rhf7 {[%emt 0:00:00]} 49. Kh2 {[%emt 0:02:26]} Kh8 {[%emt 0:00:00]} 50. Kg2 {[%emt 0:00:11]} h4 {[%emt 0:00:00]} 51. g4 {[%emt 0:01:02]} fxg4 {[%emt 0:00:03]} 52. hxg4 {[%emt 0:03:32]} h3+ {[%emt 0:01:43]} 53. Kg1 {[%emt 0:00:28]} Rxf2 {[%emt 0:00:14]} 54. Rxf2 {[%emt 0:00:04]} Rxf2 {[%emt 0:00:08]} 55. Qxf2 {[%emt 0:00:31]} h2+ {[%emt 0:00:13]} 56. Kh1 {[%emt 0:00:34]} Bxd3 {[%emt 0:00:08]} 57. Qxh2 {[%emt 0:00:45]} Qh4 {[%emt 0:03:31]} 58. a5 {[%emt 0:00:30]} Be2 {[%emt 0:00:19]} 0-1

[Event "AUT-ch 2018"]
[Site "Vienna"]
[Date "2018.07.24"]
[Round "4"]
[White "Konecny, Sophie"]
[Black "Jedinger, Andreas"]
[Result "1/2-1/2"]
[ECO "E97"]
[WhiteElo "1889"]
[BlackElo "2090"]
[Annotator "NA"]
[PlyCount "68"]
[EventDate "2018.07.22"]
[EventType "swiss"]
[EventCountry "AUT"]
[SourceTitle "playchess.com"]
[Source "ChessBase"]
[SourceQuality "1"]
[TimeControl "40/5400+30:1800+30"]

1. d4 {[%emt 0:00:00]} Nf6 {[%emt 0:00:06]} 2. c4 {[%emt 0:00:00]} g6 {[%emt 0:00:05]} 3. Nf3 {[%emt 0:00:00]} Bg7 {[%emt 0:00:03]} 4. Nc3 {[%emt 0:00:00]} O-O {[%emt 0:00:06]} 5. e4 {[%emt 0:00:00]} d6 {[%emt 0:00:04]} 6. Be2 {[%emt 0:00:02]} e5 {[%emt 0:00:08]} 7. O-O {[%emt 0:00:06]} Nc6 {[%emt 0:00:02]} 8. dxe5 {[%emt 0:00:06]} dxe5 {[%emt 0:01:13]} 9. Bg5 {[%emt 0:00:18]} Qxd1 {[%emt 0:08:04]} 10. Rfxd1 {[%emt 0:00:34]} Bg4 {[%emt 0:01:26]} 11. h3 {[%emt 0:02:00]} Bxf3 {[%emt 0:00:07]} 12. Bxf3 {[%emt 0:01:03]} Nd4 {[%emt 0:01:06]} 13. Nd5 {[%emt 0:00:50]} Nxd5 {[%emt 0:03:48]} 14. cxd5 {[%emt 0:01:04]} f5 {[%emt 0:05:50]} 15. Rac1 {[%emt 0:04:09]} Rf7 {[%emt 0:02:28]} 16. Be3 {[%emt 0:09:22]} fxe4 {[%emt 0:06:14]} 17. Bg4 {[%emt 0:05:34]} Nf5 {[%emt 0:06:16]} 18. Rc4 {[%emt 0:07:45]} h5 {[%emt 0:01:48]} 19. Be2 {[%emt 0:04:08]} Nd4 {[%emt 0:00:40]} 20. Bf1 {[%emt 0:03:30]} Rd8 {[%emt 0:01:43]} 21. Rdc1 {[%emt 0:04:13]} Rxd5 {[%emt 0:16:57]} 22. Rxc7 {[%emt 0:01:19]} Rdd7 {[%emt 0:00:15]} 23. Rc8+ {[%emt 0:05:00]} Kh7 {[%emt 0:00:21]} 24. Bc4 {[%emt 0:01:01]} Rf8 {[%emt 0:00:11]} 25. Bf1 {[%emt 0:02:36]} Rxc8 {[%emt 0:02:36]} 26. Rxc8 {[%emt 0:00:06]} Bf6 {[%emt 0:05:19]} 27. Rc4 {[%emt 0:03:57]} a6 {[%emt 0:05:15]} 28. Kh2 {[%emt 0:04:37]} Kg7 {[%emt 0:01:00]} 29. b3 {[%emt 0:03:10]} Kf7 {[%emt 0:00:14]} 30. Rc8 {[%emt 0:03:03]} Bd8 {[%emt 0:00:36]} 31. Bc4+ {[%emt 0:05:11]} Kg7 {[%emt 0:00:08]} 32. Rc5 {[%emt 0:04:30]} Nf5 {[%emt 0:13:16]} 33. Rd5 {[%emt 0:02:36]} Rxd5 {[%emt 0:00:15]} 34. Bxd5 {[%emt 0:00:05]} Nxe3 {[%emt 0:00:03]} 1/2-1/2

[Event "AUT-ch 2018"]
[Site "Vienna"]
[Date "2018.07.24"]
[Round "4"]
[White "Tschida, Verena"]
[Black "Hatzl, Johannes"]
[Result "0-1"]
[ECO "D37"]
[WhiteElo "1610"]
[BlackElo "2068"]
[Annotator "NA"]
[PlyCount "144"]
[EventDate "2018.07.22"]
[EventType "swiss"]
[EventCountry "AUT"]
[SourceTitle "playchess.com"]
[Source "ChessBase"]
[SourceQuality "1"]
[TimeControl "40/5400+30:1800+30"]

1. d4 {[%emt 0:00:00]} Nf6 {[%emt 0:00:08]} 2. c4 {[%emt 0:00:00]} e6 {[%emt 0:00:13]} 3. Nf3 {[%emt 0:00:04]} d5 {[%emt 0:00:25]} 4. Nc3 {[%emt 0:00:29]} Be7 {[%emt 0:01:44]} 5. e3 {[%emt 0:02:47]} O-O {[%emt 0:01:22]} 6. Bd2 {[%emt 0:00:19]} b6 {[%emt 0:06:34]} 7. Rc1 {[%emt 0:08:34]} Bb7 {[%emt 0:03:10]} 8. Be2 {[%emt 0:01:14]} Nbd7 {[%emt 0:04:29]} 9. O-O {[%emt 0:01:53]} c5 {[%emt 0:03:19]} 10. b3 {[%emt 0:14:58]} Rc8 {[%emt 0:02:52]} 11. cxd5 {[%emt 0:05:39]} exd5 12. Rc2 {[%emt 0:08:58]} Re8 {[%emt 0:10:37]} 13. Bc1 {[%emt 0:05:38]} Qc7 {[%emt 0:07:41]} 14. Nb5 {[%emt 0:01:57]} Qb8 {[%emt 0:00:12]} 15. Bb2 {[%emt 0:07:15]} a6 {[%emt 0:02:39]} 16. Nc3 {[%emt 0:01:36]} Red8 {[%emt 0:06:18]} 17. Nb1 {[%emt 0:10:32]} Bd6 {[%emt 0:02:07]} 18. h3 {[%emt 0:01:10]} Ne4 {[%emt 0:03:56]} 19. Nbd2 {[%emt 0:02:52]} Ndf6 {[%emt 0:06:24]} 20. Nxe4 {[%emt 0:02:34]} Nxe4 {[%emt 0:01:20]} 21. dxc5 {[%emt 0:01:12]} bxc5 {[%emt 0:00:40]} 22. Qa1 {[%emt 0:01:23]} f6 {[%emt 0:01:34]} 23. Rd1 {[%emt 0:02:03]} Be7 {[%emt 0:04:29]} 24. Nd2 {[%emt 0:02:17]} Nxd2 {[%emt 0:06:15]} 25. Rcxd2 {[%emt 0:00:14]} Qd6 {[%emt 0:01:20]} 26. Bf3 {[%emt 0:01:25]} Qe6 {[%emt 0:02:53]} 27. Qb1 {[%emt 0:00:27]} Rb8 {[%emt 0:01:30]} 28. Bg4 {[%emt 0:01:06]} Qf7 {[%emt 0:00:11]} 29. Qf5 {[%emt 0:01:30]} Bc8 {[%emt 0:02:04]} 30. Qd3 {[%emt 0:00:26]} Bxg4 {[%emt 0:01:08]} 31. hxg4 {[%emt 0:00:02]} Qe6 {[%emt 0:01:12]} 32. Qf5 {[%emt 0:00:23]} Qxf5 {[%emt 0:01:32]} 33. gxf5 {[%emt 0:00:02]} c4 {[%emt 0:00:14]} 34. bxc4 {[%emt 0:01:47]} dxc4 {[%emt 0:00:30]} 35. Rxd8+ {[%emt 0:00:21]} Rxd8 {[%emt 0:01:32]} 36. Rxd8+ {[%emt 0:00:18]} Bxd8 {[%emt 0:00:01]} 37. Kf1 {[%emt 0:02:01]} Kf7 {[%emt 0:00:34]} 38. Ke2 {[%emt 0:03:27]} Ke7 {[%emt 0:01:27]} 39. Ba3+ {[%emt 0:01:40]} Kd7 {[%emt 0:00:09]} 40. Bf8 {[%emt 0:05:21]} g6 {[%emt 0:30:15]} 41. fxg6 {[%emt 0:30:25]} hxg6 {[%emt 0:00:05]} 42. Kd2 {[%emt 0:02:50]} Ba5+ {[%emt 0:02:54]} 43. Kc2 {[%emt 0:00:33]} Ke6 {[%emt 0:02:51]} 44. f3 {[%emt 0:01:47]} Kd5 {[%emt 0:03:16]} 45. Be7 {[%emt 0:00:00]} f5 {[%emt 0:00:00]} 46. Bf6 {[%emt 0:00:00]} Bb6 {[%emt 0:00:00]} 47. Kd2 {[%emt 0:00:00]} Bc7 {[%emt 0:00:00]} 48. Bc3 {[%emt 0:00:00]} Bd6 {[%emt 0:00:00]} 49. Ke2 {[%emt 0:00:00]} g5 {[%emt 0:00:00]} 50. Kd2 {[%emt 0:00:00]} g4 {[%emt 0:00:00]} 51. Ke2 {[%emt 0:00:00]} Be7 {[%emt 0:00:00]} 52. Kd2 {[%emt 0:00:00]} Ba3 {[%emt 0:00:00]} 53. Kc2 {[%emt 0:00:00]} Bc5 {[%emt 0:00:00]} 54. Kd2 {[%emt 0:00:00]} Bb6 {[%emt 0:00:00]} 55. Ke2 {[%emt 0:00:00]} Bc7 {[%emt 0:00:00]} 56. Kd2 {[%emt 0:00:00]} Ke6 {[%emt 0:00:00]} 57. Ke2 {[%emt 0:00:00]} gxf3+ {[%emt 0:00:00]} 58. gxf3 {[%emt 0:00:00]} Kd5 {[%emt 0:00:00]} 59. Kd2 {[%emt 0:00:00]} Kc5 {[%emt 0:00:00]} 60. e4 {[%emt 0:00:28]} Bf4+ {[%emt 0:00:00]} 61. Kc2 {[%emt 0:00:26]} fxe4 {[%emt 0:00:00]} 62. fxe4 {[%emt 0:00:04]} Bc7 {[%emt 0:00:00]} 63. Kd2 {[%emt 0:01:20]} Kb5 {[%emt 0:00:00]} 64. Kc2 {[%emt 0:01:26]} Ka4 {[%emt 0:00:00]} 65. Kb2 {[%emt 0:00:12]} Bd6 {[%emt 0:00:00]} 66. e5 {[%emt 0:00:23]} Be7 {[%emt 0:00:00]} 67. e6 {[%emt 0:00:24]} Kb5 {[%emt 0:00:00]} 68. Bd4 {[%emt 0:00:17]} Kc6 {[%emt 0:00:00]} 69. Kc3 {[%emt 0:00:34]} Kd5 {[%emt 0:00:00]} 70. a4 {[%emt 0:02:05]} a5 {[%emt 0:00:13]} 71. Bf6 {[%emt 0:03:34]} Bxf6+ {[%emt 0:00:21]} 72. Kc2 {[%emt 0:00:08]} Kxe6 {[%emt 0:00:04]} 0-1